[Event "World Prestigious University 2019"]
[Site "Tianjin"]
[Date "2019.11.28"]
[Round "8.16"]
[White "Theodorou, Nikolas"]
[Black "Isakov, Michael"]
[Result "1-0"]
[WhiteElo "2555"]
[BlackElo "2162"]
[PlyCount "65"]
[EventDate "2019.11.26"]
[EventType "team-tourn"]
[EventCountry "CHN"]
[TimeControl "1500+10"]
[WhiteClock "0:03:43"]
[BlackClock "0:09:00"]

1. d4 {[%emt 0:00:00]} d5 {[%emt 0:00:00]} 2. c4 {[%emt 0:00:00]} e6 {[%emt 0:00:00]} 3. Nf3 {[%emt 0:00:00]} Nf6 {[%emt 0:00:00]} 4. g3 {[%emt 0:00:05]} Be7 {[%emt 0:00:00]} 5. Bg2 {[%emt 0:00:02]} O-O {[%emt 0:00:00]} 6. O-O {[%emt 0:00:03]} Nbd7 {[%emt 0:00:00]} 7. Qc2 {[%emt 0:00:05]} c6 {[%emt 0:00:00]} 8. Nbd2 {[%emt 0:00:02]} b6 {[%emt 0:00:01]} 9. e4 {[%emt 0:00:02]} dxc4 {[%emt 0:00:02]} 10. Nxc4 {[%emt 0:00:02]} Ba6 {[%emt 0:00:02]} 11. Rd1 {[%emt 0:02:51]} c5 {[%emt 0:00:37]} 12. d5 {[%emt 0:00:56]} exd5 {[%emt 0:00:03]} 13. exd5 {[%emt 0:00:02]} Bxc4 {[%emt 0:00:03]} 14. Qxc4 {[%emt 0:00:57]} Bd6 {[%emt 0:00:45]} 15. Bd2 {[%emt 0:02:15]} Re8 {[%emt 0:01:43]} 16. Re1 {[%emt 0:00:02]} Qc7 {[%emt 0:00:37]} 17. Bc3 {[%emt 0:00:04]} Rxe1+ {[%emt 0:02:00]} 18. Rxe1 {[%emt 0:00:03]} Re8 {[%emt 0:00:03]} 19. Rxe8+ {[%emt 0:00:53]} Nxe8 {[%emt 0:00:01]} 20. Bh3 {[%emt 0:00:01]} Nef6 {[%emt 0:04:55]} 21. Bxd7 {[%emt 0:00:05]} Nxd7 {[%emt 0:02:44]} 22. Qg4 {[%emt 0:00:03]} g6 {[%emt 0:06:58]} 23. Qh4 {[%emt 0:02:47]} Ne5 {[%emt 0:02:02]} 24. Ng5 {[%emt 0:01:06]} h5 {[%emt 0:00:01]} 25. Qf4 {[%emt 0:02:49]} Ng4 {[%emt 0:01:16]} 26. Qf3 {[%emt 0:00:02]} Qe7 {[%emt 0:00:51]} 27. Ne4 {[%emt 0:00:04]} b5 {[%emt 0:00:15]} 28. h3 {[%emt 0:02:51]} Ne5 {[%emt 0:00:01]} 29. Qf6 {[%emt 0:01:25]} Qxf6 {[%emt 0:01:34]} 30. Nxf6+ {[%emt 0:00:02]} Kh8 {[%emt 0:00:01]} 31. Ne8 {[%emt 0:01:48]} b4 {[%emt 0:00:01]} 32. Bxe5+ {[%emt 0:00:02]} Bxe5 {[%emt 0:00:01]} 33. d6 {[%emt 0:00:01]} 1-0

[Event "World Prestigious University 2019"]
[Site "Tianjin"]
[Date "2019.11.28"]
[Round "8.17"]
[White "Lu, Andrew H"]
[Black "Chandra, Akshat"]
[Result "0-1"]
[WhiteElo "2071"]
[BlackElo "2524"]
[PlyCount "167"]
[EventDate "2019.11.26"]
[EventType "team-tourn"]
[EventCountry "CHN"]
[TimeControl "1500+10"]
[WhiteClock "0:00:29"]
[BlackClock "0:00:20"]

1. d4 {[%emt 0:00:00]} Nf6 {[%emt 0:00:00]} 2. Nf3 {[%emt 0:00:00]} d5 {[%emt 0:00:00]} 3. c4 {[%emt 0:00:00]} e6 {[%emt 0:00:00]} 4. Nc3 {[%emt 0:00:00]} a6 {[%emt 0:00:05]} 5. e3 {[%emt 0:00:16]} dxc4 {[%emt 0:02:34]} 6. Bxc4 {[%emt 0:00:02]} b5 {[%emt 0:00:02]} 7. Bb3 {[%emt 0:00:44]} Bb7 {[%emt 0:00:03]} 8. O-O {[%emt 0:00:12]} Nbd7 {[%emt 0:00:33]} 9. Qe2 {[%emt 0:00:25]} c5 {[%emt 0:00:09]} 10. Rd1 {[%emt 0:00:14]} Qb8 {[%emt 0:00:37]} 11. e4 {[%emt 0:02:57]} cxd4 {[%emt 0:00:43]} 12. Nxd4 {[%emt 0:00:39]} Bd6 {[%emt 0:00:28]} 13. h3 {[%emt 0:01:39]} O-O {[%emt 0:00:17]} 14. a3 {[%emt 0:00:49]} Rd8 {[%emt 0:01:43]} 15. Bg5 {[%emt 0:01:00]} h6 {[%emt 0:01:37]} 16. Nxe6 {[%emt 0:02:21]} fxe6 {[%emt 0:00:11]} 17. Bxf6 {[%emt 0:00:30]} Nxf6 {[%emt 0:00:15]} 18. e5 {[%emt 0:00:02]} Bxe5 {[%emt 0:03:36]} 19. Rxd8+ {[%emt 0:00:03]} Qxd8 {[%emt 0:00:02]} 20. Qxe5 {[%emt 0:01:53]} Qd2 {[%emt 0:00:53]} 21. Rd1 {[%emt 0:03:52]} Qxb2 {[%emt 0:04:27]} 22. Bxe6+ {[%emt 0:00:06]} Kh8 {[%emt 0:00:02]} 23. Qc7 {[%emt 0:00:09]} Re8 {[%emt 0:02:20]} 24. Rd8 {[%emt 0:01:07]} Qc1+ {[%emt 0:02:47]} 25. Kh2 {[%emt 0:00:13]} Qg5 {[%emt 0:00:22]} 26. Rxe8+ {[%emt 0:02:48]} Nxe8 {[%emt 0:00:03]} 27. Qxb7 {[%emt 0:00:36]} Qe5+ {[%emt 0:00:01]} 28. g3 {[%emt 0:01:01]} Qxe6 {[%emt 0:00:02]} 29. Ne4 {[%emt 0:01:02]} Nf6 {[%emt 0:00:58]} 30. Nxf6 {[%emt 0:00:45]} Qxf6 {[%emt 0:00:07]} 31. Kg2 {[%emt 0:00:24]} Qe6 {[%emt 0:00:31]} 32. h4 {[%emt 0:00:23]} h5 {[%emt 0:01:33]} 33. Qf3 {[%emt 0:01:07]} g6 {[%emt 0:00:14]} 34. Qc3+ {[%emt 0:00:13]} Kg8 {[%emt 0:00:08]} 35. Qc5 {[%emt 0:00:11]} Qd7 {[%emt 0:02:26]} 36. Kh2 {[%emt 0:00:26]} Qf5 {[%emt 0:00:46]} 37. Qb6 {[%emt 0:00:27]} a5 {[%emt 0:00:21]} 38. Qd8+ {[%emt 0:00:44]} Qf8 {[%emt 0:00:12]} 39. Qd5+ {[%emt 0:00:09]} Kg7 {[%emt 0:00:04]} 40. Qd7+ {[%emt 0:00:27]} Qf7 {[%emt 0:00:08]} 41. Qd4+ {[%emt 0:00:48]} Kh7 {[%emt 0:00:01]} 42. Kg1 {[%emt 0:00:09]} Qb7 {[%emt 0:00:04]} 43. g4 {[%emt 0:00:30]} hxg4 {[%emt 0:00:16]} 44. Qxg4 {[%emt 0:00:15]} Qd5 {[%emt 0:00:23]} 45. Qf4 {[%emt 0:00:16]} Qd1+ {[%emt 0:00:12]} 46. Kh2 {[%emt 0:00:06]} Qd7 {[%emt 0:00:09]} 47. Kg1 {[%emt 0:00:18]} Qe7 {[%emt 0:00:04]} 48. h5 {[%emt 0:00:23]} gxh5 {[%emt 0:00:08]} 49. Qf5+ {[%emt 0:00:03]} Kh6 {[%emt 0:00:02]} 50. Kf1 {[%emt 0:00:09]} b4 {[%emt 0:00:23]} 51. axb4 axb4 {[%emt 0:00:01]} 52. Qf4+ {[%emt 0:00:13]} Kg6 {[%emt 0:00:04]} 53. Qg3+ {[%emt 0:00:06]} Kh7 {[%emt 0:00:13]} 54. Qd3+ {[%emt 0:00:05]} Kh8 {[%emt 0:00:26]} 55. Qd4+ {[%emt 0:00:08]} Kg8 {[%emt 0:00:08]} 56. Qd5+ {[%emt 0:00:24]} Qf7 {[%emt 0:00:00]} 57. Qg5+ {[%emt 0:00:02]} Kh7 {[%emt 0:00:02]} 58. Qe5 {[%emt 0:00:18]} b3 {[%emt 0:00:07]} 59. Qe4+ {[%emt 0:00:03]} Kg8 {[%emt 0:00:07]} 60. Qg2+ {[%emt 0:00:22]} Kh8 {[%emt 0:00:15]} 61. Qa8+ {[%emt 0:00:05]} Kg7 {[%emt 0:00:02]} 62. Qg2+ {[%emt 0:00:04]} Kh6 {[%emt 0:00:01]} 63. Qc6+ {[%emt 0:00:06]} Qg6 {[%emt 0:00:44]} 64. Qb5 {[%emt 0:00:26]} Qb1+ {[%emt 0:00:13]} 65. Kg2 {[%emt 0:00:04]} b2 {[%emt 0:00:04]} 66. Kh2 {[%emt 0:00:13]} Qc2 {[%emt 0:00:03]} 67. Qb6+ {[%emt 0:00:03]} Kg5 {[%emt 0:00:13]} 68. Qe3+ {[%emt 0:00:27]} Kf5 {[%emt 0:00:07]} 69. Qf3+ {[%emt 0:00:03]} Ke6 {[%emt 0:00:10]} 70. Qe3+ {[%emt 0:00:22]} Kd5 {[%emt 0:00:19]} 71. Qf3+ {[%emt 0:00:05]} Kc4 {[%emt 0:00:10]} 72. Qc6+ {[%emt 0:00:07]} Kb3 {[%emt 0:00:07]} 73. Qb5+ {[%emt 0:00:01]} Ka3 {[%emt 0:00:15]} 74. Qa5+ {[%emt 0:00:20]} Qa4 {[%emt 0:00:08]} 75. Qc3+ {[%emt 0:00:16]} Ka2 {[%emt 0:00:01]} 76. Qd2 {[%emt 0:00:01]} Qh4+ {[%emt 0:00:21]} 77. Kg1 {[%emt 0:00:10]} Qg4+ {[%emt 0:00:01]} 78. Kh2 {[%emt 0:00:04]} Qe4 {[%emt 0:00:10]} 79. Qa5+ {[%emt 0:00:08]} Kb3 {[%emt 0:00:05]} 80. Qb5+ {[%emt 0:00:10]} Kc2 {[%emt 0:00:03]} 81. Qc5+ {[%emt 0:00:07]} Kd1 {[%emt 0:00:03]} 82. Qd6+ {[%emt 0:00:11]} Ke1 {[%emt 0:00:15]} 83. Qg3 {[%emt 0:00:31]} b1=Q {[%emt 0:00:21]} 84. f3+ {[%emt 0:00:02]} 0-1

[Event "World Prestigious University 2019"]
[Site "Tianjin"]
[Date "2019.11.28"]
[Round "8.18"]
[White "Derakhshani, Dorsa"]
[Black "Papanek, Ella"]
[Result "1-0"]
[WhiteElo "2277"]
[BlackElo "1777"]
[PlyCount "41"]
[EventDate "2019.11.26"]
[EventType "team-tourn"]
[EventCountry "CHN"]
[TimeControl "1500+10"]
[WhiteClock "0:03:46"]
[BlackClock "0:10:33"]

1. e4 {[%emt 0:00:00]} c5 {[%emt 0:00:00]} 2. Nf3 {[%emt 0:00:13]} e6 {[%emt 0:00:00]} 3. d4 {[%emt 0:00:01]} cxd4 {[%emt 0:00:00]} 4. Nxd4 {[%emt 0:00:02]} a6 {[%emt 0:00:00]} 5. Nc3 {[%emt 0:00:01]} Qc7 {[%emt 0:00:00]} 6. Be2 {[%emt 0:00:14]} Bb4 {[%emt 0:00:52]} 7. O-O {[%emt 0:00:33]} Nf6 {[%emt 0:00:41]} 8. Be3 {[%emt 0:03:42]} Bxc3 {[%emt 0:00:35]} 9. bxc3 {[%emt 0:00:01]} Nxe4 {[%emt 0:00:12]} 10. Bd3 {[%emt 0:00:08]} Nf6 {[%emt 0:01:59]} 11. Re1 {[%emt 0:02:14]} Nc6 {[%emt 0:00:37]} 12. Nf5 {[%emt 0:01:38]} O-O {[%emt 0:01:13]} 13. Nd6 {[%emt 0:00:40]} Ne7 {[%emt 0:04:12]} 14. Bf4 {[%emt 0:03:25]} Ned5 {[%emt 0:01:06]} 15. Be5 {[%emt 0:00:11]} Qc6 {[%emt 0:01:38]} 16. c4 {[%emt 0:02:13]} Nb4 {[%emt 0:05:25]} 17. Bxf6 {[%emt 0:00:51]} Nxd3 {[%emt 0:00:04]} 18. Qg4 {[%emt 0:00:56]} g6 {[%emt 0:00:27]} 19. Qg5 {[%emt 0:00:23]} Nxe1 {[%emt 0:03:46]} 20. Rxe1 {[%emt 0:00:21]} e5 {[%emt 0:01:47]} 21. Qh6 {[%emt 0:00:10]} 1-0

[Event "World Prestigious University 2019"]
[Site "Tianjin"]
[Date "2019.11.28"]
[Round "9.1"]
[White "Isakov, Michael"]
[Black "TannerAustin, McNamara"]
[Result "1-0"]
[WhiteElo "2162"]
[BlackElo "1983"]
[PlyCount "107"]
[EventDate "2019.11.26"]
[EventType "team-tourn"]
[EventCountry "CHN"]
[TimeControl "1500+10"]
[WhiteClock "0:01:07"]
[BlackClock "0:03:08"]

1. d4 {[%emt 0:00:00]} d5 {[%emt 0:00:00]} 2. Nf3 {[%emt 0:00:00]} Nf6 {[%emt 0:00:00]} 3. c4 {[%emt 0:00:00]} c6 {[%emt 0:00:00]} 4. Nc3 {[%emt 0:00:00]} dxc4 {[%emt 0:00:13]} 5. a4 {[%emt 0:00:07]} Bf5 {[%emt 0:00:03]} 6. e3 {[%emt 0:00:08]} e6 {[%emt 0:00:02]} 7. Bxc4 {[%emt 0:00:03]} Bb4 {[%emt 0:00:10]} 8. O-O {[%emt 0:00:35]} O-O {[%emt 0:00:57]} 9. Nh4 {[%emt 0:01:48]} Bg6 {[%emt 0:00:57]} 10. Nxg6 {[%emt 0:01:45]} hxg6 {[%emt 0:00:02]} 11. Ne2 {[%emt 0:02:39]} Nbd7 {[%emt 0:00:52]} 12. b3 {[%emt 0:03:05]} c5 {[%emt 0:02:41]} 13. Bb2 {[%emt 0:00:28]} cxd4 {[%emt 0:00:49]} 14. Nxd4 {[%emt 0:01:33]} Nb6 {[%emt 0:00:22]} 15. Rc1 {[%emt 0:01:40]} Nxc4 {[%emt 0:04:24]} 16. Rxc4 {[%emt 0:00:02]} a5 {[%emt 0:00:01]} 17. Qf3 {[%emt 0:02:25]} Qd5 {[%emt 0:03:37]} 18. Rfc1 {[%emt 0:01:58]} Qxf3 {[%emt 0:02:17]} 19. Nxf3 {[%emt 0:00:18]} Nd5 {[%emt 0:00:05]} 20. Kf1 {[%emt 0:01:22]} Rfd8 {[%emt 0:01:09]} 21. g3 {[%emt 0:01:45]} Bf8 {[%emt 0:01:28]} 22. Ke2 {[%emt 0:00:49]} Nb4 {[%emt 0:00:44]} 23. Bc3 {[%emt 0:01:12]} Na2 {[%emt 0:00:48]} 24. Rc2 {[%emt 0:00:04]} Nxc3+ {[%emt 0:00:02]} 25. R4xc3 {[%emt 0:00:30]} b5 {[%emt 0:02:12]} 26. Nd4 {[%emt 0:01:07]} bxa4 {[%emt 0:00:35]} 27. bxa4 {[%emt 0:00:01]} Bb4 {[%emt 0:00:43]} 28. Rc4 {[%emt 0:00:01]} Rd7 {[%emt 0:00:26]} 29. Nc6 {[%emt 0:00:19]} Rb7 {[%emt 0:01:27]} 30. Rb2 {[%emt 0:00:22]} Kh7 {[%emt 0:01:24]} 31. Rh4+ {[%emt 0:01:00]} Kg8 {[%emt 0:00:02]} 32. Rc4 {[%emt 0:00:02]} Kh7 {[%emt 0:00:07]} 33. Kd3 {[%emt 0:00:18]} Rd7+ {[%emt 0:00:26]} 34. Ke4 {[%emt 0:00:01]} Ra6 {[%emt 0:00:41]} 35. Nxb4 {[%emt 0:00:08]} axb4 {[%emt 0:00:01]} 36. Rbxb4 {[%emt 0:00:02]} g5 {[%emt 0:00:29]} 37. Rb5 {[%emt 0:00:18]} Kg6 {[%emt 0:00:16]} 38. a5 {[%emt 0:00:01]} Rd5 {[%emt 0:00:17]} 39. Rcc5 {[%emt 0:00:09]} f5+ {[%emt 0:00:17]} 40. Kf3 {[%emt 0:00:03]} Rxc5 {[%emt 0:00:13]} 41. Rxc5 {[%emt 0:00:01]} Kf6 {[%emt 0:00:01]} 42. e4 {[%emt 0:00:56]} g6 {[%emt 0:00:07]} 43. Ke3 {[%emt 0:00:04]} Ke7 {[%emt 0:00:01]} 44. e5 {[%emt 0:00:03]} Kd7 {[%emt 0:00:08]} 45. Kd4 {[%emt 0:00:02]} g4 {[%emt 0:00:15]} 46. Kc4 {[%emt 0:00:19]} Ra8 {[%emt 0:00:16]} 47. Kd3 {[%emt 0:00:56]} Ra6 {[%emt 0:00:20]} 48. Ke3 {[%emt 0:00:07]} g5 {[%emt 0:00:04]} 49. f3 {[%emt 0:00:03]} gxf3 {[%emt 0:00:09]} 50. Kxf3 {[%emt 0:00:02]} Rc6 {[%emt 0:00:01]} 51. Rxc6 {[%emt 0:00:08]} Kxc6 {[%emt 0:00:01]} 52. h4 {[%emt 0:00:01]} gxh4 {[%emt 0:00:01]} 53. gxh4 {[%emt 0:00:01]} Kb5 {[%emt 0:00:00]} 54. h5 {[%emt 0:00:01]} 1-0

[Event "World Prestigious University 2019"]
[Site "Tianjin"]
[Date "2019.11.28"]
[Round "9.2"]
[White "Lei, Sean"]
[Black "Lu, Andrew H"]
[Result "1/2-1/2"]
[WhiteElo "1895"]
[BlackElo "2071"]
[PlyCount "68"]
[EventDate "2019.11.26"]
[EventType "team-tourn"]
[EventCountry "CHN"]
[TimeControl "1500+10"]
[WhiteClock "0:00:43"]
[BlackClock "0:00:48"]

1. d4 {[%emt 0:00:00]} Nf6 {[%emt 0:00:00]} 2. Nf3 {[%emt 0:00:00]} e6 {[%emt 0:00:00]} 3. Nbd2 {[%emt 0:00:00]} d5 {[%emt 0:00:09]} 4. e3 {[%emt 0:00:00]} Bd6 {[%emt 0:00:12]} 5. Bd3 {[%emt 0:00:01]} O-O {[%emt 0:00:05]} 6. b3 {[%emt 0:00:08]} b6 {[%emt 0:00:27]} 7. Bb2 {[%emt 0:00:01]} Ba6 {[%emt 0:00:13]} 8. O-O {[%emt 0:00:07]} Bxd3 {[%emt 0:00:03]} 9. cxd3 {[%emt 0:00:03]} c5 {[%emt 0:01:28]} 10. e4 {[%emt 0:01:48]} Be7 {[%emt 0:00:02]} 11. dxc5 {[%emt 0:01:48]} bxc5 {[%emt 0:02:09]} 12. Rc1 {[%emt 0:02:20]} Nbd7 {[%emt 0:02:06]} 13. exd5 {[%emt 0:00:49]} Nxd5 {[%emt 0:00:16]} 14. Nc4 {[%emt 0:01:37]} Rc8 {[%emt 0:02:13]} 15. d4 {[%emt 0:02:24]} Bf6 {[%emt 0:02:08]} 16. Nce5 {[%emt 0:06:22]} Bxe5 {[%emt 0:00:14]} 17. Nxe5 {[%emt 0:00:58]} Nxe5 {[%emt 0:00:41]} 18. dxe5 {[%emt 0:00:02]} Qa5 {[%emt 0:00:16]} 19. a4 {[%emt 0:02:07]} Rfd8 {[%emt 0:01:52]} 20. Ba3 {[%emt 0:02:02]} c4 {[%emt 0:03:23]} 21. bxc4 {[%emt 0:01:00]} Ne3 {[%emt 0:02:04]} 22. Qe1 {[%emt 0:00:16]} Qxe1 {[%emt 0:00:07]} 23. Rfxe1 {[%emt 0:00:04]} Nxc4 {[%emt 0:00:08]} 24. Be7 {[%emt 0:01:59]} Rd7 {[%emt 0:02:10]} 25. Bd6 {[%emt 0:02:11]} f6 {[%emt 0:01:40]} 26. f4 {[%emt 0:00:41]} Kf7 {[%emt 0:02:45]} 27. Bb4 {[%emt 0:00:11]} Rdc7 {[%emt 0:00:59]} 28. exf6 {[%emt 0:00:06]} gxf6 {[%emt 0:00:08]} 29. Re4 {[%emt 0:00:23]} a5 {[%emt 0:00:23]} 30. Be1 {[%emt 0:00:05]} Rc6 {[%emt 0:00:33]} 31. Re2 {[%emt 0:00:09]} h5 {[%emt 0:00:37]} 32. g3 {[%emt 0:00:02]} Nb6 {[%emt 0:00:24]} 33. Rxc6 {[%emt 0:00:05]} Rxc6 {[%emt 0:00:01]} 34. Bxa5 {[%emt 0:00:03]} Nxa4 {[%emt 0:00:01]} 1/2-1/2

[Event "World Prestigious University 2019"]
[Site "Tianjin"]
[Date "2019.11.28"]
[Round "9.3"]
[White "Papanek, Ella"]
[Black "Zhou, Qiyu"]
[Result "0-1"]
[WhiteElo "1777"]
[BlackElo "2216"]
[PlyCount "93"]
[EventDate "2019.11.26"]
[EventType "team-tourn"]
[EventCountry "CHN"]
[TimeControl "1500+10"]
[WhiteClock "0:00:35"]
[BlackClock "0:00:21"]

1. d4 {[%emt 0:00:00]} Nf6 {[%emt 0:00:00]} 2. c4 {[%emt 0:00:00]} e6 {[%emt 0:00:00]} 3. Nc3 {[%emt 0:00:00]} Bb4 {[%emt 0:00:00]} 4. f3 {[%emt 0:00:00]} d5 {[%emt 0:00:00]} 5. cxd5 {[%emt 0:00:07]} exd5 {[%emt 0:00:00]} 6. Bg5 {[%emt 0:01:04]} O-O {[%emt 0:00:05]} 7. e3 {[%emt 0:00:29]} h6 {[%emt 0:00:03]} 8. Bh4 {[%emt 0:00:24]} c5 {[%emt 0:00:06]} 9. a3 {[%emt 0:02:03]} Bxc3+ {[%emt 0:01:15]} 10. bxc3 {[%emt 0:00:02]} Re8 {[%emt 0:00:01]} 11. Qd2 {[%emt 0:00:41]} c4 {[%emt 0:00:49]} 12. Ne2 {[%emt 0:00:46]} Qe7 {[%emt 0:00:46]} 13. Bf2 {[%emt 0:00:18]} Nc6 {[%emt 0:00:02]} 14. Nc1 {[%emt 0:01:34]} Bf5 {[%emt 0:00:23]} 15. Be2 {[%emt 0:00:37]} Na5 {[%emt 0:00:36]} 16. Bd1 {[%emt 0:01:12]} Rac8 {[%emt 0:00:20]} 17. O-O {[%emt 0:00:44]} Red8 {[%emt 0:04:59]} 18. Re1 {[%emt 0:00:55]} Rc6 {[%emt 0:01:22]} 19. Bg3 {[%emt 0:03:48]} Rdc8 {[%emt 0:00:52]} 20. Be5 {[%emt 0:01:20]} Nb3 {[%emt 0:02:48]} 21. Nxb3 {[%emt 0:02:30]} cxb3 {[%emt 0:00:02]} 22. Bxf6 {[%emt 0:01:10]} Qxf6 {[%emt 0:00:07]} 23. e4 {[%emt 0:01:38]} Be6 {[%emt 0:00:40]} 24. e5 {[%emt 0:00:55]} Qg6 {[%emt 0:02:31]} 25. Re3 {[%emt 0:00:58]} Rb6 {[%emt 0:02:02]} 26. Qb2 {[%emt 0:00:24]} Qg5 {[%emt 0:01:31]} 27. Kf2 {[%emt 0:02:03]} Qh4+ {[%emt 0:00:31]} 28. Kg1 {[%emt 0:00:01]} Qg5 {[%emt 0:02:19]} 29. Kf2 {[%emt 0:00:19]} Qh4+ {[%emt 0:03:06]} 30. Kg1 {[%emt 0:00:05]} Rbc6 {[%emt 0:02:25]} 31. g3 {[%emt 0:02:20]} Qg5 {[%emt 0:00:07]} 32. f4 {[%emt 0:00:04]} Qg6 {[%emt 0:00:10]} 33. Bxb3 {[%emt 0:00:07]} Rb6 {[%emt 0:00:01]} 34. Qa2 {[%emt 0:00:12]} a5 {[%emt 0:00:27]} 35. a4 {[%emt 0:00:25]} Rbc6 {[%emt 0:00:11]} 36. Rc1 {[%emt 0:00:08]} Rd8 {[%emt 0:00:03]} 37. Kg2 {[%emt 0:01:01]} Qg4 {[%emt 0:00:13]} 38. Bd1 {[%emt 0:00:16]} Qh3+ {[%emt 0:00:04]} 39. Kg1 {[%emt 0:00:02]} Bf5 {[%emt 0:00:03]} 40. Bf3 {[%emt 0:00:06]} Rb6 {[%emt 0:00:13]} 41. Bg2 {[%emt 0:00:35]} Qh5 {[%emt 0:00:08]} 42. Rce1 {[%emt 0:00:22]} Be6 {[%emt 0:00:20]} 43. Qc2 {[%emt 0:00:13]} Rc8 {[%emt 0:00:07]} 44. Rb1 {[%emt 0:00:06]} Bf5 {[%emt 0:00:03]} 45. Qxf5 {[%emt 0:00:15]} Qxf5 {[%emt 0:00:01]} 46. Rxb6 {[%emt 0:00:00]} Qc2 {[%emt 0:00:13]} 47. Bxd5 {[%emt 0:00:20]} 0-1

[Event "World Prestigious University 2019"]
[Site "Tianjin"]
[Date "2019.11.28"]
[Round "9.4"]
[White "Weichao, Chu"]
[Black "Theodorou, Nikolas"]
[Result "1/2-1/2"]
[WhiteElo "2423"]
[BlackElo "2555"]
[PlyCount "122"]
[EventDate "2019.11.26"]
[EventType "team-tourn"]
[EventCountry "CHN"]
[TimeControl "1500+10"]
[WhiteClock "0:01:10"]
[BlackClock "0:01:47"]

1. d4 {[%emt 0:00:00]} Nf6 {[%emt 0:00:00]} 2. c4 {[%emt 0:00:00]} g6 {[%emt 0:00:00]} 3. Nc3 {[%emt 0:00:00]} Bg7 {[%emt 0:00:00]} 4. e4 {[%emt 0:00:02]} d6 {[%emt 0:00:00]} 5. Nf3 {[%emt 0:00:05]} O-O {[%emt 0:00:00]} 6. Be2 {[%emt 0:00:02]} e5 {[%emt 0:00:00]} 7. O-O {[%emt 0:00:04]} Na6 {[%emt 0:00:06]} 8. Be3 {[%emt 0:00:08]} Qe7 {[%emt 0:00:45]} 9. dxe5 {[%emt 0:01:25]} dxe5 {[%emt 0:00:02]} 10. Nd5 {[%emt 0:00:01]} Qd8 {[%emt 0:00:02]} 11. Qc2 {[%emt 0:01:44]} Ng4 {[%emt 0:00:31]} 12. Bg5 {[%emt 0:00:20]} f6 {[%emt 0:00:02]} 13. Bd2 {[%emt 0:01:52]} c6 {[%emt 0:00:02]} 14. Nc3 {[%emt 0:00:01]} Nc5 {[%emt 0:00:55]} 15. h3 {[%emt 0:00:08]} Nh6 {[%emt 0:00:02]} 16. Na4 {[%emt 0:00:01]} Nxa4 {[%emt 0:03:07]} 17. Qxa4 {[%emt 0:00:02]} Qe7 {[%emt 0:00:04]} 18. c5 {[%emt 0:02:44]} Be6 {[%emt 0:00:22]} 19. Bc4 {[%emt 0:00:03]} Nf7 {[%emt 0:00:46]} 20. Rfd1 {[%emt 0:01:55]} Rfe8 {[%emt 0:00:25]} 21. Be3 {[%emt 0:02:25]} Bf8 {[%emt 0:00:59]} 22. Nd2 {[%emt 0:01:18]} f5 {[%emt 0:02:57]} 23. Bxe6 {[%emt 0:01:01]} Qxe6 {[%emt 0:00:03]} 24. f3 {[%emt 0:00:04]} Rad8 {[%emt 0:00:28]} 25. Qb3 {[%emt 0:00:49]} Qxb3 {[%emt 0:04:07]} 26. Nxb3 {[%emt 0:00:03]} fxe4 {[%emt 0:01:31]} 27. fxe4 {[%emt 0:00:05]} Bh6 {[%emt 0:04:29]} 28. Bxh6 {[%emt 0:01:39]} Nxh6 {[%emt 0:00:03]} 29. Na5 {[%emt 0:00:01]} Rd4 {[%emt 0:00:01]} 30. Nxb7 {[%emt 0:02:17]} Rb8 {[%emt 0:00:16]} 31. Rxd4 {[%emt 0:05:29]} exd4 {[%emt 0:00:02]} 32. Na5 {[%emt 0:00:01]} Rxb2 {[%emt 0:00:03]} 33. Nxc6 {[%emt 0:00:05]} d3 {[%emt 0:00:02]} 34. Rd1 {[%emt 0:00:23]} d2 {[%emt 0:01:01]} 35. Nd4 {[%emt 0:00:21]} Kf7 {[%emt 0:02:51]} 36. a3 {[%emt 0:00:03]} Ke8 {[%emt 0:01:07]} 37. Kf2 {[%emt 0:00:08]} Nf7 {[%emt 0:00:02]} 38. Ke2 {[%emt 0:00:30]} Ng5 {[%emt 0:00:02]} 39. Kd3 {[%emt 0:00:42]} Ra2 {[%emt 0:00:26]} 40. Nb5 {[%emt 0:00:01]} a6 {[%emt 0:00:36]} 41. Nd6+ {[%emt 0:00:04]} Kd7 {[%emt 0:00:21]} 42. Rxd2 {[%emt 0:00:02]} Rxa3+ {[%emt 0:02:16]} 43. Kd4 {[%emt 0:00:42]} Kc6 {[%emt 0:00:21]} 44. Ke5 {[%emt 0:00:16]} Rxh3 {[%emt 0:00:43]} 45. Kf6 {[%emt 0:01:53]} Rg3 {[%emt 0:00:02]} 46. e5 {[%emt 0:00:00]} Kxc5 {[%emt 0:00:01]} 47. e6 {[%emt 0:00:16]} Re3 {[%emt 0:00:01]} 48. e7 {[%emt 0:01:21]} h6 {[%emt 0:00:41]} 49. Kxg6 {[%emt 0:00:20]} Re6+ {[%emt 0:00:14]} 50. Kh5 {[%emt 0:00:05]} Rxe7 {[%emt 0:00:02]} 51. Kxh6 {[%emt 0:00:02]} Ne4 {[%emt 0:00:15]} 52. Nxe4+ {[%emt 0:00:02]} Rxe4 {[%emt 0:00:02]} 53. Kh5 {[%emt 0:00:03]} a5 {[%emt 0:00:03]} 54. g4 {[%emt 0:00:02]} a4 {[%emt 0:00:04]} 55. g5 {[%emt 0:00:02]} a3 {[%emt 0:00:14]} 56. g6 {[%emt 0:00:03]} Re7 {[%emt 0:00:12]} 57. Kh6 {[%emt 0:00:02]} Kb4 {[%emt 0:00:03]} 58. g7 {[%emt 0:00:02]} Rxg7 {[%emt 0:00:04]} 59. Kxg7 {[%emt 0:00:02]} Kb3 {[%emt 0:00:01]} 60. Rd3+ {[%emt 0:00:01]} Kb2 {[%emt 0:00:01]} 61. Rxa3 {[%emt 0:00:01]} Kxa3 {[%emt 0:00:02]} 1/2-1/2